bitfinex-derivatives/quotes_BTCF0:USTF0_20251109
["timestamp","ask_amount","ask_price","bid_price","bid_amount"]
[1762704664662,0.4820293,103480.0,103470.0,0.4243587]
[1762704664861,0.4574593,103480.0,103470.0,0.4243587]
[1762704665359,0.4820293,103480.0,103470.0,0.4243587]
[1762704665555,0.5057293,103480.0,103470.0,0.4243587]
[1762704665749,0.5057293,103480.0,103470.0,0.1827587]
[1762704665950,0.5057293,103480.0,103470.0,0.4243587]
[1762704666462,0.4574593,103480.0,103470.0,0.4243587]
[1762704667150,0.4574593,103480.0,103470.0,0.1827587]
[1762704667354,0.45759829,103490.0,103480.0,0.1597494]
[1762704667557,0.02266012,103490.0,103480.0,0.1597494]
[1762704667755,0.26366031,103490.0,103480.0,0.4013494]
[1762704667958,0.24114508,103490.0,103480.0,0.4013494]
[1762704668158,0.24114508,103490.0,103480.0,0.1597494]
[1762704668357,0.14449498,103490.0,103480.0,0.4013494]
[1762704668759,0.14449498,103490.0,103480.0,0.7621494]
[1762704669167,0.14449498,103490.0,103480.0,0.5205494]
[1762704669465,0.14449498,103490.0,103480.0,0.7621494]
[1762704669660,0.14449498,103490.0,103480.0,0.5205494]
[1762704669854,0.14449498,103490.0,103480.0,0.7621494]
[1762704670063,0.14449498,103490.0,103480.0,0.5205494]
[1762704670365,0.00014489,103490.0,103480.0,0.7621494]
[1762704671159,0.00014489,103490.0,103480.0,0.5205494]
[1762704671363,0.00014489,103490.0,103480.0,0.7621494]
[1762704671558,0.09679499,103490.0,103480.0,0.7621494]
[1762704671761,0.51983499,103490.0,103480.0,0.04847]
[1762704672063,0.52753518,103490.0,103480.0,0.4013495]
[1762704672254,0.26338528,103490.0,103480.0,0.4013495]
[1762704672762,0.26338528,103490.0,103480.0,0.1597495]
[1762704672968,0.62418528,103490.0,103480.0,0.4013495]
[1762704673169,0.62418528,103490.0,103480.0,0.1597495]
[1762704673367,0.62418528,103490.0,103480.0,0.4013495]
[1762704673759,0.52753518,103490.0,103480.0,0.4013495]
[1762704674062,0.02269701,103490.0,103480.0,0.7621495]
[1762704674264,0.00014489,103490.0,103480.0,0.7621495]
[1762704674469,0.00014489,103490.0,103480.0,0.4013495]
[1762704674767,0.00014489,103490.0,103480.0,0.1597495]
[1762704674971,0.09679499,103490.0,103480.0,0.4013495]
[1762704675462,0.6736953,103490.0,103480.0,0.18567]
[1762704675655,0.6736953,103490.0,103480.0,0.21049]
[1762704675861,0.1679752,103490.0,103480.0,0.5487494]
[1762704676162,0.14538891,103490.0,103480.0,0.5487494]
[1762704676367,0.00014489,103490.0,103480.0,0.5487494]
[1762704676666,0.00014489,103490.0,103480.0,0.9095494]
[1762704677062,0.00014489,103490.0,103480.0,0.6679494]
[1762704677261,0.02276617,103490.0,103480.0,0.6679494]
[1762704677462,0.02276617,103490.0,103480.0,0.9095494]
[1762704677665,0.09679499,103490.0,103480.0,0.5487494]
[1762704677864,0.11941633,103490.0,103480.0,0.5487494]
[1762704678059,0.02276623,103490.0,103480.0,0.3071494]
[1762704678568,0.02276623,103490.0,103480.0,0.9095494]
[1762704679167,0.02276623,103490.0,103480.0,0.6679494]
[1762704679368,0.00014489,103490.0,103480.0,0.9095494]
[1762704679568,0.09679499,103490.0,103480.0,0.9095494]
[1762704679773,0.11941905,103490.0,103480.0,0.3071494]
[1762704680268,0.02276895,103490.0,103480.0,0.3071494]
[1762704680471,0.02276895,103490.0,103480.0,0.5487494]
[1762704680766,0.02276895,103490.0,103480.0,0.9095494]
[1762704681072,0.02276895,103490.0,103480.0,0.5487494]
[1762704681258,0.02276895,103490.0,103480.0,0.3071494]
[1762704681458,0.02276895,103490.0,103480.0,0.5487494]
[1762704681666,0.02276895,103490.0,103480.0,0.9095494]
[1762704681869,0.00014489,103490.0,103480.0,0.9095494]
[1762704682075,0.00014489,103490.0,103480.0,0.6679494]
[1762704682572,0.00014489,103490.0,103480.0,0.9095494]
[1762704682874,0.09679509,103490.0,103480.0,0.5487494]
[1762704683174,0.00014489,103490.0,103480.0,0.6679494]
[1762704683368,0.00014489,103490.0,103480.0,0.9095494]
[1762704683963,0.00014489,103490.0,103480.0,1.05552593]
[1762704684162,8.625e-05,103500.0,103490.0,0.30571673]
[1762704684473,8.625e-05,103500.0,103490.0,0.90807673]
[1762704684766,8.625e-05,103500.0,103490.0,0.7621002]
[1762704684957,8.625e-05,103500.0,103490.0,0.90807673]
[1762704685363,0.00108625,103500.0,103490.0,0.7621002]
[1762704685571,0.00208625,103500.0,103490.0,0.5205402]
[1762704685871,0.00208625,103500.0,103490.0,0.7621002]
[1762704686073,0.00208625,103500.0,103490.0,0.5205402]
[1762704686372,0.00208625,103500.0,103490.0,0.7621002]
[1762704686670,0.00208625,103500.0,103490.0,0.5205402]
[1762704686871,0.00208625,103500.0,103490.0,0.7621002]
[1762704687065,0.00208625,103500.0,103490.0,0.90807673]
[1762704687675,0.00208625,103500.0,103490.0,1.05547673]
[1762704688274,0.00208625,103500.0,103490.0,0.81391673]
[1762704688473,0.00208625,103500.0,103490.0,1.05547673]
[1762704688975,0.02585625,103500.0,103490.0,0.9095002]
[1762704689163,0.09872705,103500.0,103490.0,0.6679402]
[1762704689362,0.12249705,103500.0,103490.0,0.6679402]
[1762704689563,0.02585625,103500.0,103490.0,0.6679402]
[1762704690271,0.00208625,103500.0,103490.0,0.6679402]
[1762704691378,0.09872705,103500.0,103490.0,0.6679402]
[1762704692374,0.14379705,103500.0,103490.0,0.3071402]
[1762704694475,0.04715625,103500.0,103490.0,0.3071402]
[1762704695269,0.00208625,103500.0,103490.0,0.3071402]
[1762704695879,0.00208625,103500.0,103490.0,0.5487002]
[1762704696377,0.00208625,103500.0,103490.0,1.05547673]
[1762704696577,0.00208625,103500.0,103490.0,0.69467673]
[1762704696774,0.09872705,103500.0,103490.0,0.69467673]
[1762704696974,0.09872705,103500.0,103490.0,0.3071402]
[1762704697478,0.09872705,103500.0,103490.0,0.5487002]
[1762704698175,0.09872705,103500.0,103490.0,0.3071402]
[1762704698377,0.09872705,103500.0,103490.0,0.5487002]
[1762704698578,0.00208625,103500.0,103490.0,0.5487002]
[1762704700182,0.00208625,103500.0,103490.0,0.3071402]
[1762704700477,0.09872705,103500.0,103490.0,0.3071402]
[1762704700779,0.00208625,103500.0,103490.0,0.5487002]
[1762704700976,0.00208625,103500.0,103490.0,0.6421064]
[1762704701276,0.09872705,103500.0,103490.0,0.6421064]
[1762704701473,0.09872705,103500.0,103490.0,0.4005464]
[1762704701671,0.00208625,103500.0,103490.0,0.4005464]
[1762704701878,0.00208625,103500.0,103490.0,0.6421064]
[1762704702078,0.00208625,103500.0,103490.0,0.4005464]
[1762704703173,0.00208625,103500.0,103490.0,0.7613464]
[1762704703877,0.00208625,103500.0,103490.0,1.0029064]
[1762704704076,0.00208625,103500.0,103490.0,1.0963126]
[1762704704279,0.09677669,103510.0,103500.0,0.1572308]
[1762704704472,0.11898333,103510.0,103500.0,0.3440432]
[1762704705183,0.1428289,103510.0,103500.0,0.3440432]
[1762704705380,0.1428289,103510.0,103500.0,0.4914432]
[1762704705778,0.1468289,103510.0,103500.0,0.4914432]
[1762704706079,0.1681289,103510.0,103500.0,0.3046308]
[1762704706284,0.5289289,103510.0,103500.0,0.398037]
[1762704706586,0.5289289,103510.0,103500.0,0.3013962]
[1762704706778,0.5289289,103510.0,103500.0,0.20799]
[1762704706779,0.6223351,103510.0,103500.0,0.20799]
[1762704707975,0.04368,103500.0,103490.0,0.05942489]
[1762704708178,0.63064394,103500.0,103490.0,0.04480489]
[1762704708380,0.86917232,103500.0,103490.0,0.00014489]
[1762704708681,0.77576612,103500.0,103490.0,0.00014489]
[1762704708879,0.68235992,103500.0,103490.0,0.00014489]
[1762704709372,0.68235992,103500.0,103490.0,0.00114489]
[1762704712474,0.68235992,103500.0,103490.0,0.04580489]
[1762704712684,0.66844992,103500.0,103490.0,0.05856489]
[1762704713280,0.66844992,103500.0,103490.0,0.15521499]
[1762704713485,0.57180912,103500.0,103490.0,0.15521499]
[1762704713780,0.02220694,103500.0,103490.0,0.3012239]
[1762704714383,0.02220694,103500.0,103490.0,0.5427839]
[1762704714689,0.02220694,103500.0,103490.0,0.3012239]
[1762704714889,0.02220694,103500.0,103490.0,0.5427839]
[1762704715092,0.02220694,103500.0,103490.0,0.9035839]
[1762704715389,0.02220694,103500.0,103490.0,0.75757499]
[1762704715601,0.02220694,103500.0,103490.0,0.9035839]
[1762704715895,0.40533046,103510.0,103500.0,0.1548708]
[1762704716094,0.42752097,103510.0,103500.0,0.1548708]
[1762704716284,0.5727163,103510.0,103500.0,0.1548708]
[1762704716892,0.5737163,103510.0,103500.0,0.1548708]
[1762704717192,0.42852097,103510.0,103500.0,0.1548708]
[1762704718492,0.42852097,103510.0,103500.0,0.23167852]
[1762704718690,0.06872097,103510.0,103500.0,0.37768743]
[1762704718893,0.04553046,103510.0,103500.0,0.37968743]
[1762704719193,0.04453046,103510.0,103500.0,0.37968743]
[1762704719383,0.04453046,103510.0,103500.0,0.38368743]
[1762704720381,0.14116196,103510.0,103500.0,0.38368743]
[1762704721291,0.52415219,103510.0,103500.0,0.14103772]
[1762704721495,0.68122051,103510.0,103500.0,0.05139]
[1762704721687,0.68122051,103510.0,103500.0,0.006]
[1762704721887,0.68122051,103510.0,103500.0,0.05041]
[1762704722187,0.68122051,103510.0,103500.0,0.06325]
[1762704722393,0.68122051,103510.0,103500.0,0.04841]
[1762704722592,0.68122051,103510.0,103500.0,0.05041]
[1762704722787,0.68122051,103510.0,103500.0,0.04641]
[1762704722994,0.68122051,103510.0,103500.0,0.04741]
[1762704723192,0.68122051,103510.0,103500.0,0.04541]
[1762704723394,0.58458901,103510.0,103500.0,0.1420508]
[1762704723690,0.66896051,103510.0,103500.0,0.05825]
[1762704723897,0.67631051,103510.0,103500.0,0.05825]
[1762704724087,0.67631051,103510.0,103500.0,0.04541]
[1762704725790,0.67631051,103510.0,103500.0,0.1420508]
[1762704726193,0.57232901,103510.0,103500.0,0.1548908]
[1762704726392,0.57232901,103510.0,103500.0,0.23342219]
[1762704726690,0.06672069,103510.0,103500.0,0.59422219]
[1762704727693,0.06672069,103510.0,103500.0,0.7402311]
[1762704728501,0.04453046,103510.0,103500.0,0.79231992]
[1762704729093,0.00022046,103510.0,103500.0,0.79231992]
[1762704729299,0.38256,103530.0,103520.0,0.1538721]
[1762704729490,0.40426795,103530.0,103520.0,0.29988101]
[1762704730098,0.02176,103530.0,103520.0,0.29988101]
[1762704730291,0.51815173,103550.0,103520.0,0.29988101]
[1762704730292,0.56305173,103550.0,103540.0,0.1410135]
[1762704730490,0.58475268,103550.0,103540.0,0.1410135]
[1762704730691,0.72932077,103550.0,103540.0,0.1410135]
[1762704730897,0.67591894,103550.0,103540.0,0.1410135]
[1762704731595,0.67591894,103550.0,103540.0,0.1538535]
[1762704732191,0.67591894,103550.0,103540.0,0.1548535]
[1762704732192,0.42740095,103550.0,103540.0,0.1548535]
[1762704732397,0.52399515,103550.0,103540.0,0.05825]
[1762704732705,0.5105342,103550.0,103540.0,0.1548535]
[1762704733002,0.5105342,103550.0,103540.0,0.05825]
[1762704733205,0.5105342,103550.0,103540.0,0.001]
[1762704733410,0.65602708,103550.0,103540.0,0.001]
[1762704733910,0.65602708,103550.0,103540.0,0.1420135]
[1762704734103,0.65602708,103550.0,103540.0,0.1548535]
[1762704734715,0.65602708,103550.0,103540.0,0.1420135]
[1762704735914,0.55119288,103550.0,103540.0,0.1548535]
[1762704737312,0.64778678,103550.0,103540.0,0.1568535]
[1762704737512,0.55119288,103550.0,103540.0,0.1568535]
[1762704738421,0.64778678,103550.0,103540.0,0.1568535]
[1762704740313,0.64778678,103550.0,103540.0,0.23377832]
[1762704742218,0.55119288,103550.0,103540.0,0.23377832]
[1762704742419,0.64778678,103550.0,103540.0,0.23377832]
[1762704743217,0.55119288,103550.0,103540.0,0.23377832]
[1762704743614,0.40584489,103560.0,103550.0,0.1538439]
[1762704743813,0.40584489,103560.0,103550.0,0.3012439]
[1762704744018,0.55048595,103560.0,103550.0,0.3012439]
[1762704744412,0.02190489,103560.0,103550.0,0.5146439]
[1762704744711,0.00014489,103560.0,103550.0,0.5146439]
[1762704745120,0.02190489,103560.0,103550.0,0.5146439]
[1762704745522,0.4192,103580.0,103570.0,0.1538252]
[1762704745723,0.4057,103580.0,103570.0,0.1538252]
[1762704746425,0.5022659,103580.0,103570.0,0.1538252]
[1762704747216,0.5022659,103580.0,103570.0,0.1558252]
[1762704747921,0.5022659,103580.0,103570.0,0.1538252]
[1762704748226,0.5022659,103580.0,103570.0,0.1578252]
[1762704748620,0.5022659,103580.0,103570.0,0.1548252]
[1762704748621,0.5155859,103580.0,103570.0,0.1548252]
[1762704748821,0.5155859,103580.0,103570.0,0.1558252]
[1762704749827,0.5155859,103580.0,103570.0,0.05925]
[1762704750628,0.4057,103580.0,103570.0,0.1558252]
[1762704753030,0.5022659,103580.0,103570.0,0.1558252]
[1762704754025,0.5155859,103580.0,103570.0,0.05925]
[1762704754217,0.5155859,103580.0,103570.0,0.0239]
[1762704754625,0.5155859,103580.0,103570.0,0.04699]
[1762704755128,0.5155859,103580.0,103570.0,0.19439]
[1762704755327,0.6602132,103580.0,103570.0,0.1494]
[1762704755623,0.0965752,103570.0,103560.0,0.00014489]
[1762704755828,0.4573752,103570.0,103560.0,0.00014489]
[1762704756028,0.6020025,103570.0,103560.0,0.00014489]
[1762704756530,0.62364435,103570.0,103560.0,0.01341489]
[1762704757832,0.62464435,103570.0,103560.0,0.01341489]
[1762704758027,0.62564435,103570.0,103560.0,0.01341489]
[1762704763023,0.62564435,103570.0,103560.0,0.00014489]
[1762704767925,0.66027342,103570.0,103560.0,0.00014489]
[1762704769726,0.62564435,103570.0,103560.0,0.15441939]
[1762704769931,0.62564435,103570.0,103560.0,0.05783489]
[1762704771541,0.62464435,103570.0,103560.0,0.05783489]
[1762704772136,0.62364435,103570.0,103560.0,0.15441939]
[1762704773027,0.62364435,103570.0,103560.0,0.05783489]
[1762704773730,0.62364435,103570.0,103560.0,0.00014489]
[1762704773944,0.0965938,103550.0,103540.0,0.11367482]
[1762704774131,0.0965938,103550.0,103540.0,0.01347]
[1762704774132,0.33823383,103550.0,103540.0,0.01347]
[1762704774332,0.26297057,103550.0,103540.0,0.01347]
[1762704774832,0.0966032,103540.0,103530.0,0.0581927]
[1762704775036,0.47904505,103540.0,103530.0,0.0581927]
[1762704775237,0.62377997,103540.0,103530.0,0.0581927]
[1762704775645,0.62377997,103540.0,103530.0,0.1548052]
[1762704775941,0.62377997,103540.0,103530.0,0.0581927]
[1762704776545,0.62377997,103540.0,103530.0,0.0601927]
[1762704777145,0.62377997,103540.0,103530.0,0.1568053]
[1762704777537,0.62377997,103540.0,103530.0,0.1588053]
[1762704779144,0.62377997,103540.0,103530.0,0.0621927]
[1762704780135,0.62377997,103540.0,103530.0,0.0042127]
[1762704780335,0.62377997,103540.0,103510.0,0.43590872]
[1762704780336,0.0966219,103520.0,103510.0,0.01347]
[1762704780540,0.83975619,103520.0,103510.0,0.01347]
[1762704780849,0.96262708,103520.0,103510.0,0.05882]
[1762704781341,0.98426248,103520.0,103510.0,0.05882]
[1762704782140,0.98826248,103520.0,103510.0,0.05882]
[1762704782648,0.98626248,103520.0,103510.0,0.05882]
[1762704782944,0.98526248,103520.0,103510.0,0.05882]
[1762704789943,0.98526248,103520.0,103510.0,0.1554512]
[1762704791352,0.98526248,103520.0,103510.0,0.05882]
[1762704793150,0.0966312,103510.0,103500.0,0.20636489]
[1762704793354,0.58195825,103510.0,103500.0,0.03693489]
[1762704793550,0.74877725,103510.0,103500.0,0.01361489]
[1762704793754,0.6242502,103510.0,103500.0,0.01361489]
[1762704794054,0.74877725,103510.0,103500.0,0.01361489]
[1762704794646,0.6242502,103510.0,103500.0,0.01361489]
[1762704795744,0.6242502,103510.0,103500.0,0.05896489]
[1762704799550,0.6242502,103510.0,103500.0,0.03693489]
[1762704799751,0.6242502,103510.0,103500.0,0.01361489]
[1762704799948,0.6242502,103510.0,103500.0,0.00014489]
[1762704800258,0.74877725,103510.0,103500.0,0.00014489]
[1762704802250,0.78340632,103510.0,103500.0,0.01401489]
[1762704802851,0.75231433,103510.0,103500.0,0.01401489]
[1762704803861,0.65887927,103510.0,103500.0,0.24944055]
[1762704804061,0.6242502,103510.0,103500.0,0.24944055]
[1762704804468,0.6242502,103510.0,103500.0,0.15279995]
[1762704804757,0.71768526,103510.0,103500.0,0.03733489]
[1762704804961,0.6242502,103510.0,103500.0,0.01401489]
[1762704805266,0.65887927,103510.0,103500.0,0.00014489]
[1762704805762,0.80485352,103510.0,103500.0,0.00157446]
[1762704806365,0.85692231,103510.0,103500.0,0.00157446]
[1762704806664,0.85692231,103510.0,103470.0,0.02]
[1762704806665,0.0966593,103480.0,103470.0,0.02]
[1762704806859,0.0966685,103470.0,103460.0,0.01397551]
[1762704807070,0.48017633,103470.0,103460.0,0.03530551]
[1762704807262,0.62442203,103470.0,103460.0,0.03530551]
[1762704807461,0.62442203,103470.0,103460.0,0.01397551]
[1762704807658,0.62442203,103470.0,103460.0,0.00010551]
[1762704808356,0.62442203,103470.0,103460.0,0.01309551]
[1762704814578,0.77039628,103470.0,103460.0,0.01309551]
[1762704814781,0.62442203,103470.0,103460.0,0.01309551]
[1762704816081,0.62442203,103470.0,103460.0,0.05626551]
[1762704817087,0.62442203,103470.0,103460.0,0.03442551]
[1762704817381,0.62442203,103470.0,103460.0,0.01309551]
[1762704817969,0.62442203,103470.0,103460.0,0.05626551]
[1762704819691,0.77039628,103470.0,103460.0,0.00010551]
[1762704819871,0.77039628,103470.0,103460.0,0.03442551]
[1762704820582,0.77039628,103470.0,103460.0,0.01309551]
[1762704820884,0.62442203,103470.0,103460.0,0.05626551]
[1762704821381,0.62442203,103470.0,103460.0,0.15294341]
[1762704821585,0.62442203,103470.0,103460.0,0.05626551]
[1762704822675,0.62442203,103470.0,103460.0,0.15294341]
[1762704822883,0.62442203,103470.0,103460.0,0.05626551]
[1762704824390,0.62442203,103470.0,103460.0,0.15294341]
[1762704824890,0.71791652,103470.0,103460.0,0.15294341]
[1762704825480,0.71791652,103470.0,103460.0,0.15294331]
[1762704826483,0.62442203,103470.0,103460.0,0.2464378]
[1762704828690,0.71791652,103470.0,103460.0,0.2464378]
[1762704829788,0.62442203,103470.0,103460.0,0.2464378]
[1762704832986,0.62442203,103470.0,103460.0,0.15294331]
[1762704833400,0.62442203,103470.0,103460.0,0.2464378]
[1762704834582,0.71791652,103470.0,103460.0,0.2464378]
[1762704834782,0.71791652,103470.0,103460.0,0.05626551]
[1762704835995,0.71791652,103470.0,103460.0,0.15294331]
[1762704836295,0.75256968,103470.0,103460.0,0.15294331]
[1762704836491,0.75256968,103470.0,103460.0,0.05626551]
[1762704836795,0.75256968,103470.0,103460.0,0.15294331]
[1762704837192,0.75256968,103470.0,103460.0,0.2464378]
[1762704838497,0.75256968,103470.0,103460.0,0.14976]
[1762704839499,0.75256968,103470.0,103460.0,0.05626551]
[1762704839997,0.65907519,103470.0,103460.0,0.05626551]
[1762704840198,0.75256968,103470.0,103460.0,0.05626551]
[1762704840601,0.75256968,103470.0,103460.0,0.15294331]
[1762704842101,0.75256968,103470.0,103460.0,0.05626551]
[1762704843603,0.75256968,103470.0,103460.0,0.15294331]
[1762704843993,0.75256968,103470.0,103460.0,0.05626551]
[1762704844189,0.80590247,103470.0,103460.0,0.03442551]
[1762704844390,0.80590247,103470.0,103460.0,0.01309551]
[1762704844604,0.75256968,103470.0,103460.0,0.01309551]
[1762704845298,0.71105494,103470.0,103460.0,0.01309551]
[1762704845598,0.80454943,103470.0,103460.0,0.01309551]
[1762704845805,0.80454943,103470.0,103460.0,0.05783551]
[1762704846401,0.75256968,103470.0,103460.0,0.05783551]
[1762704848406,0.75256968,103470.0,103460.0,0.03557551]
[1762704848600,0.75256968,103470.0,103460.0,0.01309551]
[1762704849506,0.75256968,103470.0,103460.0,0.03557551]
[1762704852301,0.8979274,103470.0,103460.0,0.00010551]
[1762704852706,0.8979274,103470.0,103450.0,0.01299]
[1762704852707,0.0966778,103460.0,103450.0,0.01299]
[1762704852902,1.03932063,103460.0,103450.0,0.01299]
[1762704853102,1.18345082,103460.0,103450.0,0.01299]
[1762704853704,1.18355176,103460.0,103450.0,0.01299]
[1762704854310,1.18355176,103460.0,103450.0,0.01499]
[1762704854513,1.18355176,103460.0,103450.0,0.01699]
[1762704855109,1.23553151,103460.0,103450.0,0.004]
[1762704855305,1.18355176,103460.0,103450.0,0.004]
[1762704855500,1.23553151,103460.0,103450.0,0.004]
[1762704855707,0.0966872,103450.0,103440.0,0.01299]
[1762704855901,0.57368952,103450.0,103440.0,0.01299]
[1762704856111,0.71842573,103450.0,103440.0,0.01299]
[1762704856812,0.71842573,103450.0,103440.0,0.01599]
[1762704857012,0.8641808,103450.0,103440.0,0.003]
[1762704857609,0.8641808,103450.0,103440.0,0.006]
[1762704858105,0.0966965,103440.0,103430.0,0.01299]
[1762704858305,1.00463331,103440.0,103430.0,0.01299]
[1762704858502,0.0967059,103430.0,103420.0,0.3018573]
[1762704858705,0.55107148,103430.0,103420.0,0.3018573]
[1762704858906,0.69699573,103430.0,103420.0,0.3018573]
[1762704859108,0.60028983,103430.0,103420.0,0.3018573]
[1762704859307,0.69699573,103430.0,103420.0,0.3797301]
[1762704859704,0.69699573,103430.0,103420.0,0.2323301]
[1762704860105,0.69699573,103430.0,103420.0,0.2363301]
[1762704861616,0.14599534,103430.0,103420.0,0.78411908]
[1762704861817,7.109e-05,103430.0,103420.0,0.78911908]
[1762704862314,0.00014489,103440.0,103430.0,0.1544559]
[1762704862515,0.00014489,103440.0,103430.0,0.70224488]
[1762704862710,0.00014489,103440.0,103430.0,1.54392488]
[1762704862910,0.00014489,103440.0,103430.0,1.48160494]
[1762704863319,0.00022842,103440.0,103430.0,1.48160494]
[1762704863922,0.3608,103460.0,103450.0,0.1544372]
[1762704864113,0.3608,103470.0,103460.0,0.1544278]
[1762704864416,0.62473249,103470.0,103460.0,0.27909684]
[1762704864814,0.62478745,103470.0,103460.0,0.1544278]
[1762704866613,0.62478745,103470.0,103460.0,0.05775]
[1762704866816,0.62678745,103470.0,103460.0,0.05775]
[1762704867015,0.53011895,103470.0,103460.0,0.27909694]
[1762704867215,0.50811771,103470.0,103460.0,0.27909694]
[1762704867411,0.50811771,103470.0,103460.0,0.3552307]
[1762704867612,0.50811771,103470.0,103460.0,0.36511086]
[1762704867916,0.00205496,103470.0,103460.0,0.72591086]
[1762704868120,0.00014489,103480.0,103470.0,0.1548385]
[1762704868312,0.00014489,103480.0,103470.0,0.27950754]
[1762704868714,0.00014489,103480.0,103470.0,1.24030754]
[1762704868922,0.3608,103500.0,103490.0,0.1548198]
[1762704869115,0.38279835,103500.0,103490.0,0.1548198]
[1762704869415,0.62363111,103500.0,103490.0,0.27948884]
[1762704869815,0.52699061,103500.0,103490.0,0.27948884]
[1762704870216,0.52999061,103500.0,103490.0,0.27948884]
[1762704870414,0.50799226,103500.0,103490.0,0.27948884]
[1762704871213,0.51199226,103500.0,103490.0,0.27948884]
[1762704871816,0.60863276,103500.0,103490.0,0.27948884]
[1762704872622,0.60863276,103500.0,103490.0,0.1548198]
[1762704875223,0.51199226,103500.0,103490.0,0.1548198]
[1762704876016,0.60863276,103500.0,103490.0,0.1548198]
[1762704876218,0.51199226,103500.0,103490.0,0.1548198]
[1762704877820,0.15119226,103500.0,103490.0,0.1548198]
[1762704878025,0.15119226,103500.0,103490.0,0.37502267]
[1762704878226,0.007,103500.0,103490.0,0.73582267]
[1762704878422,0.007,103500.0,103490.0,0.37502267]
[1762704878820,0.1036405,103500.0,103490.0,0.27837287]
[1762704879026,0.4644405,103500.0,103490.0,0.1548198]
[1762704882130,0.4644405,103500.0,103490.0,0.05817]
[1762704882532,0.4644405,103500.0,103490.0,0.1548198]
[1762704882921,0.4644405,103500.0,103490.0,0.05817]
[1762704883624,0.60879199,103500.0,103490.0,0.05817]
[1762704884429,0.0966498,103490.0,103480.0,0.01381489]
[1762704884617,0.4574498,103490.0,103480.0,0.01381489]
[1762704884822,0.60229075,103490.0,103480.0,0.01381489]
[1762704885025,0.60229075,103490.0,103480.0,0.03546489]
[1762704885335,0.60229075,103490.0,103480.0,0.05831489]
[1762704885737,0.60329075,103490.0,103480.0,0.05831489]
[1762704886328,0.62517075,103490.0,103480.0,0.05831489]
[1762704886930,0.62717075,103490.0,103480.0,0.05831489]
[1762704890937,0.96441075,103490.0,103480.0,0.01381489]
[1762704891130,0.96441075,103490.0,103480.0,9e-08]
[1762704891331,0.97404134,103490.0,103480.0,9e-08]
[1762704891525,0.0966685,103470.0,103460.0,0.01301]
[1762704891734,1.1773885,103470.0,103460.0,0.01301]
[1762704892032,1.32180787,103470.0,103460.0,0.01301]
[1762704892232,1.35651389,103470.0,103460.0,0.01301]
[1762704892634,0.0966778,103460.0,103450.0,0.01381489]
[1762704892834,0.4793578,103460.0,103450.0,0.05905489]
[1762704893033,0.62422355,103460.0,103450.0,0.15574209]
[1762704894233,0.62422355,103460.0,103450.0,0.15774209]
[1762704894435,0.60234355,103460.0,103450.0,0.15974209]
[1762704899237,0.3608,103470.0,103460.0,0.1535578]
[1762704899431,0.4574685,103470.0,103460.0,0.1535578]
[1762704899627,0.60247802,103470.0,103460.0,0.1535578]
[1762704900540,0.60247802,103470.0,103460.0,0.1545578]
[1762704900937,0.60247802,103470.0,103460.0,0.05788]
[1762704901639,0.60247802,103470.0,103460.0,0.13553705]
[1762704901840,0.60247802,103470.0,103460.0,0.05788]
[1762704902040,0.62439534,103470.0,103460.0,0.03697]
[1762704903143,0.96163534,103470.0,103460.0,0.01464]
[1762704903542,0.96163534,103470.0,103460.0,0.05888]
[1762704904742,0.62439534,103470.0,103460.0,0.1555578]
[1762704904945,0.60247802,103470.0,103460.0,0.1555578]
[1762704905538,0.50580952,103470.0,103460.0,0.1555578]
[1762704905741,0.60247802,103470.0,103460.0,0.1555578]
[1762704906044,0.50580952,103470.0,103460.0,0.1555578]
[1762704906638,0.60247802,103470.0,103460.0,0.1555578]
[1762704908050,0.60247802,103470.0,103460.0,0.23207037]
[1762704909053,0.50580952,103470.0,103460.0,0.23207037]
[1762704909847,0.14500952,103470.0,103460.0,0.23207037]
[1762704910950,0.45760429,103480.0,103470.0,0.1535485]
[1762704911145,0.38277795,103480.0,103470.0,0.1535485]
[1762704911354,0.52786612,103480.0,103470.0,0.1535485]
[1762704911550,0.00014489,103480.0,103470.0,0.5143485]
[1762704911847,0.00014489,103480.0,103470.0,0.7559485]
[1762704913156,0.00014489,103480.0,103470.0,0.5143485]
[1762704913453,0.00114489,103480.0,103470.0,0.7559485]
[1762704915148,0.00114489,103480.0,103470.0,0.5143485]
[1762704915460,0.00114489,103480.0,103470.0,0.7559485]
[1762704915861,0.3608,103500.0,103490.0,0.1535298]
[1762704916063,0.38266797,103500.0,103490.0,0.1535298]
[1762704916258,0.3608,103500.0,103490.0,0.1535298]
[1762704916562,0.4574405,103500.0,103490.0,0.1535298]
[1762704917160,0.4574405,103500.0,103490.0,0.27807777]
[1762704917361,0.4614405,103500.0,103490.0,0.27807777]
[1762704917856,0.1006405,103500.0,103490.0,0.27807777]
[1762704918055,0.4644405,103500.0,103490.0,0.27807777]
[1762704918250,0.007,103500.0,103490.0,0.28778468]
[1762704919262,0.1036405,103500.0,103490.0,0.43518468]
[1762704919962,0.00014489,103510.0,103500.0,0.05688]
[1762704920164,0.00014489,103510.0,103500.0,0.27806847]
[1762704920463,0.00014489,103510.0,103500.0,0.1535205]
[1762704920862,0.00014489,103510.0,103500.0,0.27806847]
[1762704921160,0.00014489,103510.0,103500.0,0.1535205]
[1762704921161,0.00914489,103510.0,103500.0,0.1535205]
[1762704921569,0.00914489,103510.0,103500.0,0.3560588]
[1762704921752,0.00914489,103510.0,103500.0,0.7168588]
[1762704921957,0.00514489,103510.0,103500.0,0.7188588]
[1762704922653,0.00014489,103510.0,103500.0,0.7218588]
[1762704922956,0.00014489,103510.0,103500.0,0.743212]
[1762704924763,4.89e-06,103510.0,103500.0,0.743212]
[1762704924966,4.89e-06,103510.0,103500.0,0.984732]
[1762704925169,4.89e-06,103510.0,103500.0,0.743212]
[1762704925366,4.89e-06,103510.0,103500.0,0.984732]
[1762704925667,4.89e-06,103510.0,103500.0,0.743212]
[1762704925959,4.89e-06,103510.0,103500.0,0.984732]
[1762704926164,4.89e-06,103510.0,103500.0,0.890612]
[1762704926363,0.00034,103530.0,103520.0,0.05926]
[1762704926564,0.00034,103530.0,103520.0,0.30178297]
[1762704927964,0.00034,103530.0,103520.0,0.30278297]
[1762704928362,0.00034,103530.0,103520.0,0.66358297]
[1762704928768,0.00034,103530.0,103520.0,0.66458297]
[1762704928963,0.33808851,103540.0,103530.0,0.1546825]
[1762704929165,0.43469171,103540.0,103530.0,0.1546825]
[1762704929364,0.58025296,103540.0,103530.0,0.1546825]
[1762704930770,0.58025296,103540.0,103530.0,0.1556825]
[1762704931667,0.48364976,103540.0,103530.0,0.1566825]
[1762704932263,0.48364976,103540.0,103530.0,0.30258367]
[1762704933767,0.00014489,103540.0,103530.0,0.30258367]
[1762704934067,0.09674799,103540.0,103530.0,0.20497117]
[1762704934273,0.45754799,103540.0,103530.0,0.1556825]
[1762704934463,0.45754799,103540.0,103530.0,0.05907]
[1762704935068,0.60251916,103540.0,103530.0,0.05907]
[1762704936169,0.60251916,103540.0,103530.0,0.05807]
[1762704936370,0.60351916,103540.0,103530.0,0.05807]
[1762704937369,0.60351916,103540.0,103510.0,0.03497489]